[Event "AUT 2nd BL Ost 2021-22"]
[Site "Austria"]
[Date "2022.04.03"]
[Round "10.10"]
[White "Hechl, Gerald"]
[Black "Steiner, Adam"]
[Result "0-1"]
[ECO "A01"]
[WhiteElo "2209"]
[BlackElo "2222"]
[Annotator "ChessBase"]
[PlyCount "68"]
[EventDate "2022.04.01"]
[EventType "team-tourn"]
[EventCountry "AUT"]
[SourceTitle "playchess.com"]
[Source "ChessBase"]
[SourceQuality "1"]
[TimeControl "40/5400+30:1800+30"]

1. b3 {[%emt 0:00:02]} e5 {[%emt 0:00:22]} 2. Bb2 {[%emt 0:00:03]} Nc6 {[%emt 0:00:07]} 3. c4 {[%emt 0:00:04]} Nf6 {[%emt 0:00:57]} 4. e3 {[%emt 0:00:07]} Be7 {[%emt 0:04:46]} 5. Nf3 {[%emt 0:01:01]} e4 {[%emt 0:00:42]} 6. Nd4 {[%emt 0:03:53]} d6 {[%emt 0:10:07]} 7. Nxc6 {[%emt 0:11:21]} bxc6 {[%emt 0:00:02]} 8. Qc2 {[%emt 0:00:07]} O-O {[%emt 0:03:06]} 9. Nc3 {[%emt 0:02:23]} Bf5 {[%emt 0:06:22]} 10. Ne2 {[%emt 0:04:07]} Qd7 {[%emt 0:03:08]} 11. h3 {[%emt 0:03:47]} h6 {[%emt 0:13:37]} 12. g4 {[%emt 0:00:37]} Bh7 {[%emt 0:00:34]} 13. Rg1 {[%emt 0:04:01]} c5 {[%emt 0:11:43]} 14. g5 {[%emt 0:04:01]} hxg5 {[%emt 0:00:02]} 15. Rxg5 {[%emt 0:00:04]} Ne8 {[%emt 0:01:03]} 16. Rg1 {[%emt 0:00:16]} c6 {[%emt 0:08:08]} 17. Nf4 {[%emt 0:12:04]} d5 {[%emt 0:17:30]} 18. O-O-O {[%emt 0:06:26]} Bf6 {[%emt 0:00:58]} 19. Bxf6 {[%emt 0:09:59]} Nxf6 {[%emt 0:00:02]} 20. Qb2 {[%emt 0:00:12]} d4 {[%emt 0:04:08]} 21. d3 {[%emt 0:02:35]} Rfd8 {[%emt 0:00:23]} 22. dxe4 {[%emt 0:13:08]} Bxe4 {[%emt 0:00:24]} 23. Bg2 {[%emt 0:06:11]} Qf5 {[%emt 0:04:08]} 24. Bxe4 {[%emt 0:04:28]} Nxe4 {[%emt 0:00:13]} 25. h4 {[%emt 0:02:06]} a5 {[%emt 0:05:14]} 26. Qc2 {[%emt 0:04:48]} dxe3 {[%emt 0:01:57]} 27. fxe3 {[%emt 0:01:02]} Qe5 {[%emt 0:00:18]} 28. Qb2 {[%emt 0:00:35]} Nc3 {[%emt 0:03:08]} 29. Rde1 {[%emt 0:01:43]} a4 {[%emt 0:01:07]} 30. Rg5 {[%emt 0:00:58]} Nxa2+ {[%emt 0:00:08]} 31. Kb1 {[%emt 0:02:55]} Qxb2+ {[%emt 0:00:34]} 32. Kxb2 {[%emt 0:00:01]} Rd2+ {[%emt 0:00:01]} 33. Kb1 {[%emt 0:01:00]} axb3 {[%emt 0:00:32]} 34. Rc1 {[%emt 0:00:51]} Nxc1 {[%emt 0:00:17]} 0-1

[Event "AUT 2nd BL Ost 2021-22"]
[Site "Austria"]
[Date "2022.04.03"]
[Round "10.11"]
[White "Wetscherek, Gerhard"]
[Black "Lucaci, Marius"]
[Result "0-1"]
[ECO "C02"]
[WhiteElo "2105"]
[BlackElo "2114"]
[Annotator "ChessBase"]
[PlyCount "64"]
[EventDate "2022.04.01"]
[EventType "team-tourn"]
[EventCountry "AUT"]
[SourceTitle "playchess.com"]
[Source "ChessBase"]
[SourceQuality "1"]
[TimeControl "40/5400+30:1800+30"]

1. e4 {[%emt 0:00:06]} e6 {[%emt 0:00:04]} 2. d4 {[%emt 0:00:14]} d5 {[%emt 0:00:07]} 3. e5 {[%emt 0:00:37]} c5 {[%emt 0:00:06]} 4. c3 {[%emt 0:00:04]} Nc6 {[%emt 0:00:06]} 5. Nf3 {[%emt 0:00:08]} Qb6 {[%emt 0:02:11]} 6. Be2 {[%emt 0:01:58]} f6 {[%emt 0:00:08]} 7. O-O {[%emt 0:03:04]} Bd7 {[%emt 0:02:32]} 8. b3 {[%emt 0:02:23]} Rc8 {[%emt 0:02:25]} 9. Be3 {[%emt 0:03:52]} cxd4 {[%emt 0:05:25]} 10. Bxd4 {[%emt 0:04:22]} Nxd4 {[%emt 0:03:05]} 11. cxd4 {[%emt 0:00:09]} Be7 {[%emt 0:02:01]} 12. Qd3 {[%emt 0:04:42]} Nh6 {[%emt 0:03:01]} 13. Nbd2 {[%emt 0:05:24]} O-O {[%emt 0:00:34]} 14. Rfc1 {[%emt 0:18:55]} a6 {[%emt 0:02:06]} 15. Nf1 {[%emt 0:01:16]} fxe5 {[%emt 0:02:15]} 16. dxe5 {[%emt 0:05:06]} Ng4 {[%emt 0:08:54]} 17. Ne3 {[%emt 0:06:34]} Nxe3 {[%emt 0:09:44]} 18. Rxc8 {[%emt 0:10:55]} Rxc8 {[%emt 0:02:05]} 19. fxe3 {[%emt 0:01:26]} Bb4 {[%emt 0:09:06]} 20. Kf2 {[%emt 0:03:51]} Bb5 {[%emt 0:20:33]} 21. Qd4 {[%emt 0:04:51]} Bc5 {[%emt 0:02:04]} 22. Qd2 {[%emt 0:00:16]} Bxe2 {[%emt 0:02:03]} 23. Kxe2 {[%emt 0:01:15]} Bb4 {[%emt 0:02:02]} 24. Qd1 {[%emt 0:07:05]} Rc3 {[%emt 0:01:43]} 25. Nd4 {[%emt 0:02:19]} Qc7 {[%emt 0:02:26]} 26. a3 {[%emt 0:01:13]} Bc5 {[%emt 0:01:30]} 27. Qd2 {[%emt 0:04:06]} Bxd4 {[%emt 0:00:24]} 28. Qxd4 {[%emt 0:00:04]} Rxb3 {[%emt 0:00:35]} 29. Kf2 {[%emt 0:01:20]} Qc2+ {[%emt 0:07:01]} 30. Kf3 {[%emt 0:01:50]} Rb2 {[%emt 0:00:26]} 31. g3 {[%emt 0:01:13]} Qf2+ {[%emt 0:00:19]} 32. Kg4 {[%emt 0:00:08]} Qf5+ {[%emt 0:00:09]} 0-1

[Event "AUT 2nd BL Ost 2021-22"]
[Site "Austria"]
[Date "2022.04.03"]
[Round "10.12"]
[White "Schmidrathner, Christian"]
[Black "Mayrhuber, Tobias"]
[Result "1/2-1/2"]
[ECO "C36"]
[WhiteElo "2013"]
[BlackElo "2037"]
[Annotator "NA"]
[PlyCount "177"]
[EventDate "2022.04.01"]
[EventType "team-tourn"]
[EventCountry "AUT"]
[SourceTitle "playchess.com"]
[Source "ChessBase"]
[SourceQuality "1"]
[TimeControl "40/5400+30:1800+30"]

1. e4 {[%emt 0:00:02]} e5 {[%emt 0:00:08]} 2. f4 {[%emt 0:00:46]} exf4 {[%emt 0:01:56]} 3. Nf3 {[%emt 0:00:05]} d5 {[%emt 0:00:18]} 4. exd5 {[%emt 0:00:08]} Nf6 {[%emt 0:00:15]} 5. Bb5+ {[%emt 0:00:52]} Bd7 {[%emt 0:07:51]} 6. Bxd7+ {[%emt 0:00:15]} Nbxd7 {[%emt 0:00:51]} 7. O-O {[%emt 0:01:18]} Nxd5 {[%emt 0:03:25]} 8. c4 {[%emt 0:02:18]} N5b6 {[%emt 0:03:22]} 9. d3 {[%emt 0:04:54]} Be7 {[%emt 0:04:06]} 10. Bxf4 {[%emt 0:00:57]} O-O {[%emt 0:00:19]} 11. Nc3 {[%emt 0:01:35]} Nc5 {[%emt 0:02:47]} 12. Qe2 {[%emt 0:22:59]} Re8 {[%emt 0:06:59]} 13. Rad1 {[%emt 0:03:58]} Ne6 {[%emt 0:10:37]} 14. Be3 {[%emt 0:02:20]} c5 {[%emt 0:01:19]} 15. Qf2 {[%emt 0:06:47]} f5 {[%emt 0:07:16]} 16. Ne2 {[%emt 0:08:24]} Bf6 {[%emt 0:03:55]} 17. b3 {[%emt 0:02:13]} Qc7 {[%emt 0:04:23]} 18. g3 {[%emt 0:03:41]} Nd7 {[%emt 0:04:43]} 19. d4 {[%emt 0:01:32]} g6 {[%emt 0:06:19]} 20. d5 {[%emt 0:09:09]} Nd8 {[%emt 0:01:48]} 21. Nf4 {[%emt 0:03:30]} Qd6 {[%emt 0:04:28]} 22. Nd3 {[%emt 0:02:36]} b6 {[%emt 0:00:46]} 23. Bf4 {[%emt 0:03:03]} Qf8 {[%emt 0:00:18]} 24. Bg5 {[%emt 0:02:12]} Nf7 {[%emt 0:02:26]} 25. Bf4 {[%emt 0:04:12]} Re4 {[%emt 0:02:17]} 26. Kg2 {[%emt 0:01:27]} Rae8 {[%emt 0:01:12]} 27. Rfe1 {[%emt 0:00:52]} Bc3 {[%emt 0:03:24]} 28. Bd2 {[%emt 0:01:00]} Bxd2 {[%emt 0:06:16]} 29. Qxd2 {[%emt 0:00:46]} Nf6 {[%emt 0:01:42]} 30. Nf4 {[%emt 0:01:01]} Qd6 {[%emt 0:04:53]} 31. Ne6 {[%emt 0:00:45]} Nd8 {[%emt 0:01:03]} 32. Nxd8 {[%emt 0:03:40]} Qxd8 {[%emt 0:00:33]} 33. Rxe4 {[%emt 0:03:21]} Nxe4 {[%emt 0:00:52]} 34. Qc1 {[%emt 0:00:36]} Nd6 {[%emt 0:02:09]} 35. Re1 {[%emt 0:00:08]} Rxe1 {[%emt 0:00:56]} 36. Qxe1 {[%emt 0:00:03]} Ne4 {[%emt 0:00:07]} 37. Nd2 {[%emt 0:01:01]} Qe7 {[%emt 0:01:56]} 38. Nxe4 {[%emt 0:00:48]} fxe4 {[%emt 0:00:06]} 39. Qd1 {[%emt 0:03:59]} Qd6 {[%emt 0:00:58]} 40. Kf2 {[%emt 0:00:26]} Kf7 {[%emt 0:00:50]} 41. Qa1 {[%emt 0:27:34]} b5 {[%emt 0:18:31]} 42. Ke3 {[%emt 0:01:27]} bxc4 {[%emt 0:00:50]} 43. Qf1+ {[%emt 0:01:16]} Ke8 {[%emt 0:04:51]} 44. Qxc4 {[%emt 0:00:13]} Qf6 {[%emt 0:00:15]} 45. Qxe4+ {[%emt 0:00:19]} Kd7 {[%emt 0:02:04]} 46. Qa4+ {[%emt 0:01:48]} Kc8 {[%emt 0:01:56]} 47. Qg4+ {[%emt 0:00:07]} Kb7 {[%emt 0:01:38]} 48. Qd7+ {[%emt 0:00:23]} Kb8 {[%emt 0:00:16]} 49. Qb5+ {[%emt 0:00:10]} Kc7 {[%emt 0:00:41]} 50. Qxc5+ {[%emt 0:00:07]} Kd8 {[%emt 0:00:14]} 51. Qa5+ {[%emt 0:00:22]} Kc8 {[%emt 0:00:19]} 52. Qd2 {[%emt 0:01:35]} Qg5+ {[%emt 0:00:47]} 53. Ke2 {[%emt 0:00:04]} Qg4+ {[%emt 0:00:34]} 54. Ke1 {[%emt 0:00:01]} Qe4+ {[%emt 0:00:10]} 55. Kd1 {[%emt 0:00:07]} Kd7 {[%emt 0:00:42]} 56. Kc1 {[%emt 0:00:44]} Qh1+ {[%emt 0:00:36]} 57. Kb2 {[%emt 0:00:04]} Qg1 {[%emt 0:00:16]} 58. a4 {[%emt 0:00:15]} Qc5 {[%emt 0:01:29]} 59. Ka2 {[%emt 0:01:49]} Kc8 {[%emt 0:02:08]} 60. Qe2 {[%emt 0:00:24]} Kd8 {[%emt 0:00:20]} 61. Qc4 {[%emt 0:01:11]} Qf2+ {[%emt 0:00:11]} 62. Ka3 {[%emt 0:00:10]} Qf6 {[%emt 0:01:01]} 63. Qh4 {[%emt 0:01:02]} g5 {[%emt 0:00:05]} 64. Qe4 {[%emt 0:00:19]} a5 {[%emt 0:00:46]} 65. Ka2 {[%emt 0:01:02]} Qf2+ {[%emt 0:00:10]} 66. Kb1 {[%emt 0:00:35]} Qg1+ {[%emt 0:00:27]} 67. Kb2 {[%emt 0:00:14]} Qxh2+ {[%emt 0:00:44]} 68. Ka3 {[%emt 0:00:49]} Qxg3 {[%emt 0:00:42]} 69. Qe6 {[%emt 0:00:16]} Qc3 {[%emt 0:00:52]} 70. Qg8+ {[%emt 0:00:33]} Kd7 {[%emt 0:00:21]} 71. Qxh7+ {[%emt 0:00:14]} Kd6 {[%emt 0:00:40]} 72. Qg6+ {[%emt 0:00:12]} Kxd5 {[%emt 0:00:16]} 73. Qxg5+ {[%emt 0:00:07]} Kc6 {[%emt 0:00:44]} 74. Qb5+ {[%emt 0:00:29]} Kd6 {[%emt 0:00:12]} 75. Qa6+ {[%emt 0:00:25]} Kc5 {[%emt 0:00:55]} 76. Qc8+ {[%emt 0:00:47]} Kd4 {[%emt 0:00:05]} 77. Qh8+ {[%emt 0:00:50]} Kd3 {[%emt 0:00:16]} 78. Qh3+ {[%emt 0:00:14]} Kd4 {[%emt 0:00:32]} 79. Qg4+ {[%emt 0:00:58]} Kc5 {[%emt 0:00:32]} 80. Qg1+ {[%emt 0:00:40]} Kd5 {[%emt 0:00:51]} 81. Qd1+ {[%emt 0:00:24]} Kc5 {[%emt 0:00:21]} 82. Ka2 {[%emt 0:00:14]} Kb6 {[%emt 0:01:05]} 83. Kb1 {[%emt 0:00:24]} Kb7 {[%emt 0:00:39]} 84. Qd5+ {[%emt 0:00:52]} Kb6 {[%emt 0:00:23]} 85. Qb5+ {[%emt 0:00:17]} Ka7 {[%emt 0:00:10]} 86. Qc4 {[%emt 0:00:33]} Qd2 {[%emt 0:00:23]} 87. Qc2 {[%emt 0:00:16]} Qe1+ {[%emt 0:00:40]} 88. Ka2 {[%emt 0:00:10]} Kb6 {[%emt 0:00:31]} 89. Qd1 {[%emt 0:01:10]} 1/2-1/2

[Event "AUT 2nd BL Ost 2021-22"]
[Site "Austria"]
[Date "2022.04.03"]
[Round "10.13"]
[White "Lipka, Juraj"]
[Black "Stanec, Nikolaus"]
[Result "1/2-1/2"]
[ECO "A50"]
[WhiteElo "2393"]
[BlackElo "2485"]
[Annotator "ChessBase"]
[PlyCount "34"]
[EventDate "2022.04.01"]
[EventType "team-tourn"]
[EventCountry "AUT"]
[SourceTitle "playchess.com"]
[Source "ChessBase"]
[SourceQuality "1"]
[TimeControl "40/5400+30:1800+30"]

1. d4 {[%emt 0:00:03]} Nf6 {[%emt 0:00:06]} 2. c4 {[%emt 0:00:06]} e6 {[%emt 0:00:07]} 3. Nf3 {[%emt 0:00:13]} b6 {[%emt 0:00:07]} 4. g3 {[%emt 0:00:23]} Bb7 {[%emt 0:00:21]} 5. Bg2 {[%emt 0:00:18]} g6 {[%emt 0:00:19]} 6. O-O {[%emt 0:01:28]} Bg7 {[%emt 0:00:05]} 7. Nc3 {[%emt 0:16:20]} Ne4 {[%emt 0:00:22]} 8. Nxe4 {[%emt 0:02:59]} Bxe4 {[%emt 0:00:05]} 9. Bg5 {[%emt 0:01:05]} Qc8 {[%emt 0:00:31]} 10. Qd2 {[%emt 0:01:37]} O-O {[%emt 0:02:07]} 11. Bh6 {[%emt 0:01:43]} d6 {[%emt 0:08:11]} 12. Rfd1 {[%emt 0:16:49]} Nd7 {[%emt 0:02:16]} 13. Qf4 {[%emt 0:10:37]} Bxh6 {[%emt 0:05:31]} 14. Qxe4 {[%emt 0:01:09]} Rb8 {[%emt 0:07:27]} 15. Qc6 {[%emt 0:03:23]} Nf6 {[%emt 0:02:33]} 16. Ne1 {[%emt 0:03:18]} Qd7 {[%emt 0:08:30]} 17. Nd3 {[%emt 0:03:40]} Qe7 {[%emt 0:04:11]} 1/2-1/2

[Event "AUT 2nd BL Ost 2021-22"]
[Site "Austria"]
[Date "2022.04.03"]
[Round "10.14"]
[White "Kummer, Helmut"]
[Black "Alvir, Aco"]
[Result "0-1"]
[ECO "A72"]
[WhiteElo "2248"]
[BlackElo "2337"]
[Annotator "ChessBase"]
[PlyCount "80"]
[EventDate "2022.04.01"]
[EventType "team-tourn"]
[EventCountry "AUT"]
[SourceTitle "playchess.com"]
[Source "ChessBase"]
[SourceQuality "1"]
[TimeControl "40/5400+30:1800+30"]

1. d4 {[%emt 0:00:10]} Nf6 {[%emt 0:00:10]} 2. c4 {[%emt 0:00:14]} g6 {[%emt 0:00:09]} 3. Nc3 {[%emt 0:00:22]} Bg7 {[%emt 0:00:11]} 4. e4 {[%emt 0:00:50]} d6 {[%emt 0:00:06]} 5. Be2 {[%emt 0:05:43]} O-O {[%emt 0:01:04]} 6. Bg5 {[%emt 0:01:18]} c5 {[%emt 0:01:12]} 7. d5 {[%emt 0:01:22]} e6 {[%emt 0:01:43]} 8. Nf3 {[%emt 0:14:32]} exd5 {[%emt 0:03:57]} 9. cxd5 {[%emt 0:04:24]} a6 {[%emt 0:08:57]} 10. a4 {[%emt 0:00:23]} h6 {[%emt 0:04:02]} 11. Bf4 {[%emt 0:04:03]} Bg4 {[%emt 0:06:50]} 12. h3 {[%emt 0:02:01]} Bxf3 {[%emt 0:00:22]} 13. Bxf3 {[%emt 0:00:04]} Qe7 {[%emt 0:01:09]} 14. O-O {[%emt 0:01:44]} Nbd7 {[%emt 0:00:13]} 15. Re1 {[%emt 0:00:26]} Nh7 {[%emt 0:07:21]} 16. Be2 {[%emt 0:07:15]} Rfe8 {[%emt 0:05:05]} 17. Bf1 {[%emt 0:02:35]} Bd4 {[%emt 0:09:41]} 18. Qd2 {[%emt 0:11:34]} Qf6 {[%emt 0:03:33]} 19. Rad1 {[%emt 0:09:30]} Ng5 {[%emt 0:07:53]} 20. h4 {[%emt 0:09:39]} Nh7 {[%emt 0:03:12]} 21. Bxh6 {[%emt 0:03:18]} Qxh4 {[%emt 0:00:30]} 22. Be3 {[%emt 0:02:50]} Ne5 {[%emt 0:02:16]} 23. Be2 {[%emt 0:01:52]} Bxc3 {[%emt 0:13:31]} 24. bxc3 {[%emt 0:03:14]} Qxe4 {[%emt 0:00:18]} 25. a5 {[%emt 0:00:56]} Qf5 {[%emt 0:01:36]} 26. Rb1 {[%emt 0:03:10]} Re7 {[%emt 0:01:15]} 27. f3 {[%emt 0:05:44]} Rae8 {[%emt 0:00:39]} 28. Bf2 {[%emt 0:01:02]} g5 {[%emt 0:00:45]} 29. Rb6 {[%emt 0:00:38]} Rd8 {[%emt 0:06:35]} 30. Bf1 {[%emt 0:01:41]} Rdd7 {[%emt 0:02:49]} 31. c4 {[%emt 0:00:47]} Nf8 {[%emt 0:01:09]} 32. Rb3 {[%emt 0:00:23]} Nfg6 {[%emt 0:00:15]} 33. Rbe3 {[%emt 0:02:04]} Qf6 {[%emt 0:01:42]} 34. Qc3 {[%emt 0:00:53]} Rd8 {[%emt 0:00:22]} 35. Re4 {[%emt 0:00:32]} Rde8 {[%emt 0:00:07]} 36. Qc1 {[%emt 0:00:25]} Nf4 {[%emt 0:00:48]} 37. Qe3 {[%emt 0:00:33]} Qh6 {[%emt 0:03:07]} 38. Qc1 {[%emt 0:00:22]} Nh3+ {[%emt 0:02:03]} 39. gxh3 {[%emt 0:00:11]} Nxf3+ {[%emt 0:00:01]} 40. Kg2 {[%emt 0:00:23]} Rxe4 {[%emt 0:07:51]} 0-1

[Event "AUT 2nd BL Ost 2021-22"]
[Site "Austria"]
[Date "2022.04.03"]
[Round "10.15"]
[White "Kuthan, Andreas"]
[Black "Hechl, Fabian"]
[Result "1-0"]
[ECO "C01"]
[WhiteElo "2250"]
[BlackElo "2023"]
[Annotator "ChessBase"]
[PlyCount "83"]
[EventDate "2022.04.01"]
[EventType "team-tourn"]
[EventCountry "AUT"]
[SourceTitle "playchess.com"]
[Source "ChessBase"]
[SourceQuality "1"]
[TimeControl "40/5400+30:1800+30"]

1. d4 {[%emt 0:00:02]} e6 {[%emt 0:00:05]} 2. e4 {[%emt 0:00:11]} d5 {[%emt 0:00:05]} 3. exd5 {[%emt 0:00:30]} exd5 {[%emt 0:00:05]} 4. Nf3 {[%emt 0:00:04]} Nf6 {[%emt 0:00:05]} 5. Bd3 {[%emt 0:00:06]} c5 {[%emt 0:00:07]} 6. O-O {[%emt 0:00:47]} c4 {[%emt 0:00:03]} 7. Re1+ {[%emt 0:00:07]} Be7 {[%emt 0:00:03]} 8. Bf1 {[%emt 0:00:07]} O-O {[%emt 0:00:06]} 9. b3 {[%emt 0:01:51]} cxb3 {[%emt 0:00:39]} 10. axb3 {[%emt 0:00:09]} Bf5 {[%emt 0:05:07]} 11. Ne5 {[%emt 0:04:17]} Nc6 {[%emt 0:04:41]} 12. Nxc6 {[%emt 0:24:57]} bxc6 {[%emt 0:00:11]} 13. Rxe7 {[%emt 0:00:38]} Qxe7 {[%emt 0:00:02]} 14. Ba3 {[%emt 0:00:08]} Qe4 {[%emt 0:17:09]} 15. Bxf8 {[%emt 0:00:09]} Kxf8 {[%emt 0:00:42]} 16. c3 {[%emt 0:15:07]} Bg4 {[%emt 0:31:30]} 17. Qd2 {[%emt 0:20:07]} Qg6 {[%emt 0:01:59]} 18. Qf4 {[%emt 0:03:39]} Nh5 {[%emt 0:13:33]} 19. Qd2 {[%emt 0:07:30]} Re8 {[%emt 0:02:54]} 20. c4 {[%emt 0:05:14]} a5 {[%emt 0:15:18]} 21. Nc3 {[%emt 0:01:27]} dxc4 {[%emt 0:02:41]} 22. bxc4 {[%emt 0:00:01]} Ra8 {[%emt 0:02:33]} 23. Na4 {[%emt 0:05:38]} Qh6 {[%emt 0:01:46]} 24. Qc3 {[%emt 0:02:24]} Qg5 {[%emt 0:00:27]} 25. Nc5 {[%emt 0:01:07]} Nf4 {[%emt 0:00:24]} 26. Qg3 {[%emt 0:02:05]} h6 {[%emt 0:00:36]} 27. Re1 {[%emt 0:02:57]} a4 {[%emt 0:02:07]} 28. Re5 {[%emt 0:01:29]} f5 {[%emt 0:00:00]} 29. h4 {[%emt 0:01:08]} Ne2+ {[%emt 0:00:00]} 30. Rxe2 {[%emt 0:00:28]} Qc1 {[%emt 0:00:00]} 31. Qd6+ {[%emt 0:00:37]} Kg8 {[%emt 0:00:00]} 32. Qe6+ {[%emt 0:00:21]} Kh7 {[%emt 0:00:49]} 33. f3 {[%emt 0:00:26]} a3 {[%emt 0:00:25]} 34. fxg4 {[%emt 0:00:32]} a2 {[%emt 0:00:03]} 35. Qxf5+ {[%emt 0:00:21]} Kh8 {[%emt 0:00:10]} 36. Nb3 {[%emt 0:00:19]} Qc3 {[%emt 0:00:59]} 37. Qc2 {[%emt 0:00:53]} a1=Q {[%emt 0:00:56]} 38. Nxa1 {[%emt 0:00:05]} Qxd4+ {[%emt 0:00:07]} 39. Kh2 {[%emt 0:00:52]} Qxa1 {[%emt 0:01:01]} 40. Qf5 {[%emt 0:00:54]} Qd4 {[%emt 0:00:30]} 41. Re4 {[%emt 0:04:37]} Qd6+ {[%emt 0:00:58]} 42. Qf4 {[%emt 0:02:35]} 1-0

[Event "AUT 2nd BL Ost 2021-22"]
[Site "Austria"]
[Date "2022.04.03"]
[Round "10.16"]
[White "Froewis, Annika"]
[Black "Gschiel, Alexander"]
[Result "0-1"]
[ECO "B15"]
[WhiteElo "2065"]
[BlackElo "2109"]
[Annotator "ChessBase"]
[PlyCount "104"]
[EventDate "2022.04.01"]
[EventType "team-tourn"]
[EventCountry "AUT"]
[SourceTitle "playchess.com"]
[Source "ChessBase"]
[SourceQuality "1"]
[TimeControl "40/5400+30:1800+30"]

1. e4 {[%emt 0:00:03]} c6 {[%emt 0:00:11]} 2. d4 {[%emt 0:00:30]} d5 {[%emt 0:00:07]} 3. Nc3 {[%emt 0:00:05]} dxe4 {[%emt 0:00:09]} 4. Nxe4 {[%emt 0:00:05]} Nf6 {[%emt 0:00:08]} 5. Nxf6+ {[%emt 0:00:05]} exf6 {[%emt 0:00:05]} 6. c3 {[%emt 0:00:24]} Bd6 {[%emt 0:00:13]} 7. Bd3 {[%emt 0:00:12]} O-O {[%emt 0:00:13]} 8. Qc2 {[%emt 0:00:58]} Re8+ {[%emt 0:00:07]} 9. Ne2 {[%emt 0:00:05]} h5 {[%emt 0:00:07]} 10. O-O {[%emt 0:04:16]} h4 {[%emt 0:00:37]} 11. h3 {[%emt 0:02:16]} Nd7 {[%emt 0:00:25]} 12. Bd2 {[%emt 0:04:18]} Nf8 {[%emt 0:01:20]} 13. Rae1 {[%emt 0:01:42]} Bc7 {[%emt 0:03:03]} 14. f4 {[%emt 0:14:10]} g6 {[%emt 0:02:58]} 15. Kh1 {[%emt 0:05:31]} f5 {[%emt 0:08:02]} 16. Rf3 {[%emt 0:23:56]} Qd6 {[%emt 0:07:21]} 17. Ng1 {[%emt 0:03:42]} Be6 {[%emt 0:03:27]} 18. Ref1 {[%emt 0:04:23]} Bd5 {[%emt 0:09:54]} 19. R3f2 {[%emt 0:05:15]} Ne6 {[%emt 0:05:09]} 20. Ne2 {[%emt 0:03:55]} c5 {[%emt 0:08:46]} 21. c4 {[%emt 0:02:44]} Be4 {[%emt 0:01:11]} 22. Bxe4 {[%emt 0:03:22]} fxe4 {[%emt 0:00:08]} 23. d5 {[%emt 0:09:49]} Nd4 {[%emt 0:05:21]} 24. Qc1 {[%emt 0:00:56]} Bd8 {[%emt 0:08:43]} 25. Be3 {[%emt 0:01:01]} Bf6 {[%emt 0:00:14]} 26. f5 {[%emt 0:05:48]} Bg7 {[%emt 0:04:52]} 27. f6 {[%emt 0:03:16]} Nxe2 {[%emt 0:03:21]} 28. Rxe2 {[%emt 0:00:02]} Bxf6 {[%emt 0:00:10]} 29. Ref2 {[%emt 0:00:13]} Bd4 {[%emt 0:01:26]} 30. Rxf7 {[%emt 0:01:23]} Rf8 {[%emt 0:01:05]} 31. Bf4 {[%emt 0:00:55]} Qa6 {[%emt 0:03:05]} 32. Re7 {[%emt 0:00:18]} Qf6 {[%emt 0:00:46]} 33. Rxe4 {[%emt 0:00:48]} g5 {[%emt 0:01:10]} 34. Qd1 {[%emt 0:00:32]} Qf5 {[%emt 0:03:42]} 35. Qf3 {[%emt 0:00:25]} gxf4 {[%emt 0:00:35]} 36. Re7 {[%emt 0:00:33]} Rae8 {[%emt 0:00:44]} 37. Rxe8 {[%emt 0:00:30]} Rxe8 {[%emt 0:00:07]} 38. d6 {[%emt 0:00:27]} Re3 {[%emt 0:00:24]} 39. Qg4+ {[%emt 0:00:34]} Qxg4 {[%emt 0:00:09]} 40. hxg4 {[%emt 0:00:01]} Re6 {[%emt 0:01:18]} 41. b3 {[%emt 0:02:24]} Rxd6 {[%emt 0:02:07]} 42. Kh2 {[%emt 0:00:45]} Bf6 {[%emt 0:01:59]} 43. Re1 {[%emt 0:02:39]} Kf7 {[%emt 0:01:34]} 44. g5 {[%emt 0:00:32]} Bxg5 {[%emt 0:00:39]} 45. Re5 {[%emt 0:00:20]} Kg6 {[%emt 0:00:34]} 46. Rxc5 {[%emt 0:00:15]} Rd2 {[%emt 0:00:10]} 47. Kh3 {[%emt 0:01:34]} Rd3+ {[%emt 0:00:33]} 48. Kh2 {[%emt 0:00:02]} h3 {[%emt 0:00:38]} 49. Rb5 {[%emt 0:02:29]} f3 {[%emt 0:01:17]} 50. gxh3 {[%emt 0:00:37]} Bf4+ {[%emt 0:00:10]} 51. Kg1 {[%emt 0:00:05]} Be3+ {[%emt 0:00:48]} 52. Kh2 {[%emt 0:00:05]} f2 {[%emt 0:00:12]} 0-1